Cogmind - Beta 13 @@@ ROGUE MODE // 2024.06.10 @ 15:33:53 Player: jonasanoj Result: Destroyed by G-47 Trooper with Particle Gun Performance ------------- Evolutions (1) 500 Regions Visited (3) 600 Robots Destroyed (19) 95 Value Destroyed (511) 511 Prototype IDs (1) 20 Alien Tech Used (0) 0 Bonus (0) 0 TOTAL SCORE: 1726 Bonus ------- None Cogmind --------- Core Integrity 0/400 Matter 300/300 Energy 100/100 System Corruption 0% Temperature Cool (9) Movement Core (200) Ox3 Location -9/Materials Parts ------- > --- POWER (1) -------- (None) > --- PROPULSION (2) --- (None) > --- UTILITY (4) ------ Medium Storage Unit Signal Interpreter > --- WEAPON (2) ------- (None) > --- INVENTORY (10) --- Light Ion Engine Aluminum Leg Aluminum Leg Structural Scanner Structural Scanner Seismic Detector Peak State ------------ > --- POWER ------------ Light Nuclear Core > --- PROPULSION ------- Aluminum Leg Aluminum Leg > --- UTILITY ---------- Medium Storage Unit Structural Scanner Experimental Sensor Array Signal Interpreter > --- WEAPON ----------- Beam Cannon Assault Rifle > --- INVENTORY -------- Ion Engine Light Ion Engine Aluminum Leg Aluminum Leg Structural Scanner Structural Scanner Seismic Detector Grenade Launcher [Rating: 19] Favorites ----------- Power Ion Engine Engine Ion Engine Power Core Light Nuclear Core Propulsion Light Treads Treads Light Treads Leg Aluminum Leg Utility Medium Storage Unit Device Structural Scanner Storage Medium Storage Unit Processor Signal Interpreter Weapon Assault Rifle Energy Gun Small Laser Energy Cannon Beam Cannon Ballistic Gun Assault Rifle Launcher Grenade Launcher Build | -11 -10 -10 -9 ------- Run | Yrd Mat Min Mat Slots Evolved 2 | . . . 2 Power . | . . . . Propulsion . | . . . . Utility 2 | . . . 2 Weapon . | . . . . Parts Attached 24 | 6 4 8 6 Power 3 | 1 . 1 1 Engine 2 | 1 . . 1 Core 1 | . . 1 . Reactor . | . . . . Propulsion 6 | 2 . 4 . Treads 3 | 2 . 1 . Leg 3 | . . 3 . Wheel . | . . . . Hover . | . . . . Flight . | . . . . Utility 6 | 1 3 . 2 Device 3 | . 2 . 1 Storage 2 | 1 1 . . Processor 1 | . . . 1 Hackware . | . . . . Protection . | . . . . Artifact . | . . . . Weapon 9 | 2 1 3 3 Energy Gun 2 | 1 . . 1 Energy Cannon 2 | . 1 1 . Ballistic Gun 3 | 1 . 1 1 Ballistic Cannon . | . . . . Launcher 2 | . . 1 1 Special Weapon . | . . . . Impact Weapon . | . . . . Slashing Weapon . | . . . . Piercing Weapon . | . . . . Special Melee Weapon . | . . . . Unidentified Prototypes 1 | . . . 1 Parts Lost 14 | . . 3 11 Power 3 | . . 1 2 Propulsion 4 | . . 2 2 Utility 2 | . . . 2 Weapon 5 | . . . 5 Highest Loss Streak 11 | . . 3 11 To Critical Strikes . | . . . . Average Slot Usage (%) 96 | . 97 98 80 Engine 7 | . 14 3 . Core 5 | . . 9 7 Treads 14 | . 28 7 . Leg 11 | . . 20 15 Device 13 | . 12 14 16 Storage 13 | . 14 14 11 Processor 1 | . . . 11 Energy Gun 4 | . 10 . 1 Energy Cannon 9 | . 3 15 8 Ballistic Gun 12 | . 14 12 8 Naked Turns . | . . . . Heaviest Build 22 | 13 21 22 22 Greatest Support 40 | 40 40 40 20 Greatest Overweight (x) 4 | . . 1 4 Average Overweight (x) . | . . . 1 Largest Inventory Capacity 10 | 8 10 10 10 Average Capacity 9 | 7 9 10 10 Most Carried 10 | 4 10 10 9 Average Carried 8 | 1 8 9 7 Final Capacity 10 | 8 10 10 10 Final Carried 10 | 4 10 10 6 Class Distribution -------------------- 91% | Mutant 8% | Skirmisher Dominant Class ---------------- Mutant | -10/Materials Mutant | -10/Mines Skirmisher | -9/Materials Resources | -11 -10 -10 -9 ----------- Run | Yrd Mat Min Mat Matter Collected 485 | 236 109 99 41 Remotely . | . . . . Salvage Created 662 | . 127 419 116 Parts 37 | . 12 18 7 Haulers Intercepted 1 | . 1 . . Recyclers Shooed . | . . . . Parts Field Recycled . | . . . . Retrieved Matter . | . . . . Parts Self-Destructed . | . . . . Prevented . | . . . . Kills | -11 -10 -10 -9 ------- Run | Yrd Mat Min Mat Combat Hostiles Destroyed 15 | . 5 7 3 Guns 6 | . 5 1 . Cannons 6 | . . 5 1 AOE 3 | . . 1 2 Classes Destroyed 6 | . 3 2 1 Hauler 1 | . 1 . . Recycler 2 | . . 2 . Watcher 1 | . 1 . . Swarmer 5 | . 5 . . Grunt 8 | . . 7 1 Sentry 2 | . . . 2 Best Kill Streak 5 | . 3 5 3 Combat Bots Only 3 | . 3 3 3 Max Kills in Single Turn 2 | . 2 2 2 Gunslinging 1 | . 1 . . Exploded 2 | . . 1 2 Melee . | . . . . Uniques/NPCs Destroyed . | . . . . Combat | -11 -10 -10 -9 -------- Run | Yrd Mat Min Mat Hostile Shots Fired 195 | . 26 52 117 Missed 47 | . 10 7 30 Damage Taken 2003 | . 147 609 1247 Core 547 | . 17 125 405 Absorbed by Shields . | . . . . Core Remaining (%) 71 | 100 . 43 . Volleys Fired 50 | . 15 16 19 Largest 2 | . 2 2 2 Hottest 120 | . 80 120 90 Shots Fired 88 | . 30 32 26 Gun 52 | . 28 8 16 Cannon 34 | . 2 23 9 Launcher 2 | . . 1 1 Special . | . . . . Kinetic 30 | . 15 8 7 Thermal 56 | . 15 23 18 Explosive 2 | . . 1 1 Electromagnetic . | . . . . Robot Hit Streak 6 | . 5 6 5 Robot Miss Streak 4 | . 4 3 2 Penetration Max . | . . . . Secondary Targets 2 | . 2 . . Max Gunslinging Chain 1 | . 1 . . Shots Hit Robots 49 | . 16 17 16 Core Hits 30 | . 7 15 8 Critical Kills . | . . . . Critical Parts Destroyed . | . . . . Critical Strikes . | . . . . Melee Attacks . | . . . . Impact . | . . . . Slashing . | . . . . Piercing . | . . . . Sneak Attacks . | . . . . Combat Hostiles . | . . . . Follow-up Attacks . | . . . . Damage Inflicted 1105 | . 201 495 409 Guns 370 | . 167 37 166 Cannons 381 | . 34 261 86 Explosions 337 | . . 180 157 Melee . | . . . . Ramming 17 | . . 17 . Kinetic 184 | . 68 37 79 Thermal 567 | . 133 261 173 Explosive 337 | . . 180 157 Electromagnetic . | . . . . Impact . | . . . . Slashing . | . . . . Piercing . | . . . . Highest Corruption . | . . . . Average Corruption . | . . . . Corruption Purged . | . . . . Corruption Blocked . | . . . . Overload Shots . | . . . . Overflow Damage . | . . . . Projectiles . | . . . . Explosions . | . . . . Melee . | . . . . Knockbacks . | . . . . Impact . | . . . . Kinetic . | . . . . Secondary . | . . . . Self-Inflicted Damage 55 | . . 23 32 Shots 2 | . . 1 1 Rammed . | . . . . Targets Rammed 6 | . . 6 . Kicked 6 | . . 6 . Crushed . | . . . . Highest Temperature 228 | . 36 228 192 Average Temperature 94 | . 20 101 93 Received Heat Transfer 864 | . . 336 528 Siege Activations . | . . . . Robots Corrupted . | . . . . Combat Hostiles . | . . . . Parts Fried . | . . . . Impact Corruptions . | . . . . Robots Melted . | . . . . Combat Hostiles . | . . . . Parts Melted 2 | . 2 . . Heat Transferred 1261 | . 299 555 407 Parts Sabotaged . | . . . . Parts Stolen . | . . . . Parts Stripped . | . . . . Power Chain Reactions . | . . . . Alert | -11 -10 -10 -9 ------- Run | Yrd Mat Min Mat Peak Influence 147 | . 99 147 109 Initial . | . . . . Average 37 | . 45 35 28 Maximum Alert Level . | . . . . Low Security (%) 100 | 100 100 100 100 Level 1 . | . . . . Level 2 . | . . . . Level 3 . | . . . . Level 4 . | . . . . Level 5 . | . . . . High Security . | . . . . Max Security . | . . . . Squads Dispatched 2 | . 1 . 1 Investigation . | . . . . Extermination . | . . . . Reinforcement 2 | . 1 . 1 Assault . | . . . . Garrison . | . . . . Intercept . | . . . . Searches Triggered . | . . . . Construction Impeded 1 | . . . 1 Haulers Reinforced . | . . . . Active Scanning Responses . | . . . . Cargo Convoy Interrupts . | . . . . Stealth | -11 -10 -10 -9 --------- Run | Yrd Mat Min Mat Distress Signals 5 | . 1 . 4 Communications Jammed . | . . . . Distress Signals . | . . . . Times Spotted 39 | . 16 9 14 Peak Tracking Total 8 | . 4 5 8 Tactical Retreats 3 | . 1 1 1 Traps | -11 -10 -10 -9 ------- Run | Yrd Mat Min Mat Traps Triggered 1 | . 1 . . Indirectly . | . . . . Trap Hack Attempts . | . . . . Triggered . | . . . . Disarmed . | . . . . Reprogrammed . | . . . . Reused . | . . . . Traps Extracted . | . . . . Installed . | . . . . Triggered . | . . . . Machines | -11 -10 -10 -9 ---------- Run | Yrd Mat Min Mat Machines Disabled 3 | . . 2 1 Max in Single Turn 1 | . . 1 1 Machines Repaired . | . . . . Machines Dismantled . | . . . . Machines Sabotaged . | . . . . Overloaded Fab Kills . | . . . . Hacking | -11 -10 -10 -9 --------- Run | Yrd Mat Min Mat Machines Accessed 4 | . 4 . . Terminals 4 | . 4 . . Fabricators . | . . . . Repair Stations . | . . . . Recycling Units . | . . . . Scanalyzers . | . . . . Garrison Access . | . . . . Total Hacks 7 | . 7 . . Successful 5 | . 5 . . Failed 2 | . 2 . . Catastrophic 1 | . 1 . . Database Lockouts . | . . . . Manual 1 | . 1 . . Terminals 7 | . 7 . . Fabricators . | . . . . Repair Stations . | . . . . Recycling Units . | . . . . Scanalyzers . | . . . . Garrison Access . | . . . . Terminal Hacks 5 | . 5 . . Robot Analysis 1 | . 1 . . Emergency Access Points 2 | . 2 . . Dispatch Records 1 | . 1 . . Recall Investigation 1 | . 1 . . Fabricator Hacks . | . . . . Repair Station Hacks . | . . . . Recycling Unit Hacks . | . . . . Scanalyzer . | . . . . Garrison Access Hacks . | . . . . Unauthorized Hacks . | . . . . Terminals . | . . . . Fabricators . | . . . . Repair Stations . | . . . . Recycling Units . | . . . . Scanalyzers . | . . . . Garrison Access . | . . . . Data Cores Recovered . | . . . . Used . | . . . . Hacking Detections 3 | . 3 . . Full Trace Events . | . . . . Feedback Events . | . . . . Feedback Blocked . | . . . . Robot Schematics Acquired . | . . . . Robots Built . | . . . . Authchips . | . . . . Time . | . . . . Total Robot Build Rating . | . . . . Part Schematics Acquired . | . . . . Parts Built . | . . . . Authchips . | . . . . Time . | . . . . Total Part Build Rating . | . . . . Parts Repaired . | . . . . Time . | . . . . Parts Recycled . | . . . . Recycled Matter . | . . . . Retrieved Matter . | . . . . Retrieved Components . | . . . . Parts Scanalyzed . | . . . . Part Schematics Acquired . | . . . . Parts Damaged . | . . . . Bothacking | -11 -10 -10 -9 ------------ Run | Yrd Mat Min Mat Used RIF Installer . | . . . . Robots Hacked . | . . . . Non-combat . | . . . . Combat . | . . . . Robot Hacks Applied . | . . . . Relay Couplers Released . | . . . . Fabnet Peak Effective % . | . . . . Robots Rewired . | . . . . Allies Hacked . | . . . . Hacks Repelled . | . . . . Allies | -11 -10 -10 -9 -------- Run | Yrd Mat Min Mat Total Allies 1 | . . 1 . Largest Group 1 | . . 1 1 Highest-Rated Group 31 | . . 31 31 Highest-Rated Ally 31 | . . 31 31 Total Orders . | . . . . Ally Attacks 4 | . . 4 . Total Damage 62 | . . 62 . Kills . | . . . . Allies Corrupted . | . . . . Allies Melted . | . . . . Intel | -11 -10 -10 -9 ------- Run | Yrd Mat Min Mat Robot Analysis Total 1 | . 1 . . Derelict Logs Recovered 1 | . . 1 . Drone Launches . | . . . . Drone Recoveries . | . . . . Exploration | -11 -10 -10 -9 ------------- Run | Yrd Mat Min Mat Turns Passed 2124 | 85 822 987 230 Spaces Moved 1117 | 53 469 504 91 Core 28 | 11 . . 17 Treads 648 | 42 469 137 . Legs 441 | . . 367 74 Wheels . | . . . . Hover . | . . . . Flight . | . . . . Fastest Speed 50 | 50 160 120 190 Average Speed 170 | 137 160 179 195 Slowest Speed 250 | 160 160 190 250 Overloaded Moves . | . . . . Propulsion Burnouts . | . . . . Robots Hopped . | . . . . Cave-ins Triggered . | . . . . Exploration Rate (%) 45 | 5 68 96 11 Regions Visited 3 Branch Regions 1 Pre-discovered Areas 1 | . . 1 . Known Exits Taken . | . . . . Unknown Exits Taken 3 | 1 1 1 . Scrap Searched 1 | . . 1 . Spaces Dug . | . . . . Terrain Destroyed 15 | . . 7 8 Melee . | . . . . Projectile . | . . . . AOE 15 | . . 7 8 Terrain Rammed . | . . . . Walls Destroyed . | . . . . Machines Disabled . | . . . . Actions | -11 -10 -10 -9 --------- Run | Yrd Mat Min Mat Total 1240 | 62 513 549 116 Wait 9 | . 6 3 . Move 1114 | 52 468 503 91 Hop . | . . . . Pick Up 23 | 4 13 6 . Fast Attach 11 | 6 . 3 2 Attach 6 | . 1 1 4 Detach . | . . . . Swap 7 | . 3 4 . Drop 14 | . 7 7 . Fire 50 | . 15 16 19 Melee . | . . . . Ram . | . . . . Kick 6 | . . 6 . Crush . | . . . . Escape Stasis . | . . . . Rewire . | . . . . Trap . | . . . . Miscellaneous . | . . . . Route ------- -11/Scrapyard -10/Materials (discovered 2 exits: *Mat / [*Min]) -10/Mines (discovered 2 exits: *Mat x2) -9/Materials History --------- Turn | Location | Event 7 | -11/Scrapyard | Discovered new exit (range 15) 86 | -11/Scrapyard | Entered Materials 309 | -10/Materials | Build established: Mutant 545 | -10/Materials | Discovered new exit (range 7) 676 | -10/Materials | Discovered new exit (range 15) 908 | -10/Materials | Entered Mines 972 | -10/Mines | Found a damaged Exp. Sensor Array with a note attached 976 | -10/Mines | Found Prototype Device 1172 | -10/Mines | Lost 3 parts (1p2n) 1424 | -10/Mines | Escorted by a lone wolf Derelict 1488 | -10/Mines | Learned location of Zion (-7) 1514 | -10/Mines | Core integrity fell below 50% 1595 | -10/Mines | Discovered new exit (range 10) 1699 | -10/Mines | Discovered new exit (range 11) 1895 | -10/Mines | Entered Materials 1895 | -9/Materials | Accompanied by 1 ally 1895 | -9/Materials | Evolved 2 slots: Utility x2 1896 | -9/Materials | Identified Exp. Sensor Array 2084 | -9/Materials | Core integrity fell below 50% 2104 | -9/Materials | Core integrity fell below 20% 2125 | -9/Materials | Destroyed by G-47 Trooper with Particle Gun Last Messages --------------- M-13 Machinist repairs G-34 Mercenary. R-06 Scavenger collects Welding Torch. G-34 Mercenary heat damages Sml. Laser. U-05 Engineer lays Concrete. Acquired 41 matter. U-05 Engineer lays Concrete. R-06 Scavenger collects Lgt. Ion Engine. G-34 Mercenary overheating. U-05 Engineer lays Concrete. T-07 Excavator destroyed. K-01 Serf collects debris. Beam Rifle destroyed. G-34 Mercenary overheating. K-01 Serf collects debris. M-13 Machinist fits Backup Plating I on G-34 Mercenary. M-13 Machinist repairs Sml. Laser. G-34 Mercenary overheating. K-01 Serf collects debris. R-06 Scavenger collects Wheel. R-06 Scavenger collects Lgt. Ion Engine. Map ----- +----------------------------------------------------+ | ?????????????????????????????????????????????????? | | ?????????????????????????????????????????????????? | | ?????????????????????????????????????????????????? | | ?????????????????????? ######??? #??????? | | ???????????????############################??????? | | ???????????## ######### ####### ##??????? | | ???????????## ## #### # T" ##??????? | | ???????????## # ## " # ??????? | | ???????????## # * ## # ??????? | | ???????????## # % %## ####### # ??????? | | ???????????## # % ##### ######### ## ??????? | | ???????????## / % ##### ## # ## ??????? | | ???????????## # / ## "" # ##???????? | | ?????????? ## ########% ## ""S + ##???????? | | ?????????? # ####### % ## "" # ##???????? | | ?????????? + ???????## ## # "## | | ?????????? # ????????## ### ## # "%#####+#### | | ?????????? # ????????## ### ######### " | | ?????????? ##??????? + ### ######### | | ?????????? ##??????? # ### ##?????## | | ???????????????????? # ###+######?#####+### ### | | ???????????????????? # ## ??## # ### | | ????????????????????## ##?r """ ?## """ # ##? | | ???????????# ##### # """ ?## """ # ##? | | ????????? #g """ ### """ ######? | | ????????? @ ### """ ######? | | ?????????### ##### # """ ### ##????? | | ???????????##??????####### """ ?##########????? | | ???????????????????######?? """ ?##########????? | | ??????????????????????????? ????????????????? | | ????????????????????????????######???????????????? | | ?????????????????????????????????????????????????? | | ?????????????????????????????????????????????????? | | ?????????????????????????????????????????????????? | | ?????????????????????????????????????????????????? | | ?????????????????????????????????????????????????? | | ?????????????????????????????????????????????????? | | ?????????????????????????????????????????????????? | | ?????????????????????????????????????????????????? | | | | | | | | | | | | | | | | | | | | | | | +----------------------------------------------------+ Best States ------------- Heat Dissipation 28 Energy Generation 14 Energy Capacity 250 Matter Stores 300 Matter Capacity 300 Sight Range 16 Robot Scan Range 20 Terrain Scan Range 14 Terrain Scan Density 10 Evasion (%) 50 Recoil Reduction 2 Item Schematics ----------------- None Robot Schematics ------------------ None Fabricated ------------ Nothing Alien Tech Used ----------------- None Achievements -------------- None Challenges ------------ None Game ------ Seed ImpactSigixWings Manual? 0 Play Time 00:12:19 Cumulative 13.8 hours Start 2024.06.10 @ 15:22:53 End 2024.06.10 @ 15:33:53 Sessions 1 Manual Loads 0 Difficulty Rogue Special Mode None Game No. 25 Rogue 20 Adventurer 5 Explorer 0 Win Type - Total 0 Types 0/0/0/0/0/0/0/0/0 Lore% 18 Gallery% 23 Achievement% 18 Wizard Run 0 Options --------- Layout 0 ASCII 0 Keyboard 0 Movement Arrows Keybinds 0 Fullscreen 1 Font 18/X11Bold Map View 76x50 Zoom Use 0% Tactical HUD 0 Map Filters NONE Filters NONE Steam 1 RUN: 05220f6f-f303-4789-a5f3-65c15ade3e8b